Cogmind - Beta 13 @@@ ROGUE MODE // 2024.07.10 @ 00:10:46 Player: coinshot Result: Destroyed by G-34 Mercenary with Small Laser Performance ------------- Evolutions (1) 500 Regions Visited (3) 600 Robots Destroyed (26) 130 Value Destroyed (600) 600 Prototype IDs (1) 20 Alien Tech Used (0) 0 Bonus (0) 0 TOTAL SCORE: 1850 Bonus ------- None Cogmind --------- Core Integrity 0/400 Matter 300/300 Energy 98/100 System Corruption 1% Temperature Cool (12) Movement Core (50) Location -9/Storage Parts ------- > --- POWER (2) -------- (None) > --- PROPULSION (2) --- (None) > --- UTILITY (3) ------ (None) > --- WEAPON (2) ------- (None) > --- INVENTORY (5) ---- VTOL Module High-capacity Storage Unit Sensor Array Propulsion Shielding Peak State ------------ > --- POWER ------------ Light Ion Engine Light Ion Engine > --- PROPULSION ------- Flight Unit VTOL Module > --- UTILITY ---------- Improved Heat Sink Signal Interpreter Improved Terrain Scanner > --- WEAPON ----------- Particle Cannon Advanced Beam Cannon > --- INVENTORY -------- Hover Unit Hover Unit High-capacity Storage Unit Sensor Array Propulsion Shielding [Rating: 17] Favorites ----------- Power Light Ion Engine Engine Light Ion Engine Propulsion Hover Unit Wheel Wheel Hover Unit Hover Unit Flight Unit Flight Unit Utility Signal Interpreter Device Improved Heat Sink Storage Medium Matter Pod Processor Signal Interpreter Weapon Particle Cannon Energy Gun EM Pulse Gun Energy Cannon Particle Cannon Ballistic Gun Assault Rifle Build | -11 -10 -9 -9 ------- Run | Yrd Mat Mat Sto Slots Evolved 2 | . . 2 . Power 1 | . . 1 . Propulsion . | . . . . Utility 1 | . . 1 . Weapon . | . . . . Parts Attached 28 | 8 12 7 1 Power 4 | 1 2 1 . Engine 4 | 1 2 1 . Core . | . . . . Reactor . | . . . . Propulsion 11 | 2 4 4 1 Treads . | . . . . Leg . | . . . . Wheel 2 | 2 . . . Hover 6 | . 4 2 . Flight 3 | . . 2 1 Utility 7 | 2 4 1 . Device 4 | 1 2 1 . Storage 2 | 1 1 . . Processor 1 | . 1 . . Hackware . | . . . . Protection . | . . . . Artifact . | . . . . Weapon 6 | 3 2 1 . Energy Gun 3 | 2 1 . . Energy Cannon 2 | . 1 1 . Ballistic Gun 1 | 1 . . . Ballistic Cannon . | . . . . Launcher . | . . . . Special Weapon . | . . . . Impact Weapon . | . . . . Slashing Weapon . | . . . . Piercing Weapon . | . . . . Special Melee Weapon . | . . . . Unidentified Prototypes 1 | . . 1 . Corrupted Parts 2 | 1 1 . . System Corruption 3 | 1 2 . . Parts Lost 8 | . . . 8 Power 2 | . . . 2 Propulsion 3 | . . . 3 Utility 2 | . . . 2 Weapon 1 | . . . 1 Highest Loss Streak 4 | . . . 4 To Critical Strikes . | . . . . Average Slot Usage (%) 86 | . 96 100 62 Engine 14 | . 14 22 7 Wheel 2 | . 7 . . Hover 15 | . 17 21 7 Device 17 | . 11 22 18 Storage 1 | . 4 . . Processor 11 | . 11 11 11 Energy Gun 8 | . 18 6 . Energy Cannon 13 | . 8 15 17 Naked Turns 1 | . . . 1 Heaviest Build 49 | 10 49 16 16 Greatest Support 20 | 20 20 12 12 Greatest Overweight (x) 4 | . 4 1 4 Average Overweight (x) . | . . 1 . Largest Inventory Capacity 20 | 5 20 5 5 Average Capacity 5 | 5 6 5 5 Most Carried 5 | 5 5 5 5 Average Carried 3 | 2 4 3 4 Final Capacity 5 | 5 5 5 5 Final Carried 5 | 4 5 5 4 Class Distribution -------------------- 61% | Scavenger-Mutant 38% | Mutant Dominant Class ---------------- Scavenger-Mutant | -10/Materials Scavenger-Mutant | -9/Materials Mutant | -9/Storage Resources | -11 -10 -9 -9 ----------- Run | Yrd Mat Mat Sto Matter Collected 572 | 369 128 70 5 Remotely . | . . . . Salvage Created 821 | 95 229 292 205 Parts 71 | 7 27 25 12 Haulers Intercepted . | . . . . Recyclers Shooed 2 | . . . 2 Parts Field Recycled . | . . . . Retrieved Matter . | . . . . Parts Self-Destructed . | . . . . Prevented . | . . . . Kills | -11 -10 -9 -9 ------- Run | Yrd Mat Mat Sto Combat Hostiles Destroyed 14 | 1 2 5 6 Guns 1 | 1 . . . Cannons 13 | . 2 5 6 Classes Destroyed 7 | 3 2 1 1 Worker 5 | 1 3 . 1 Tunneler 1 | 1 . . . Operator 2 | . 1 1 . Watcher 4 | . 2 1 1 Swarmer 3 | . . . 3 Grunt 6 | 1 2 1 2 Sentry 5 | . . 4 1 Best Kill Streak 4 | 1 4 4 4 Combat Bots Only 4 | 1 2 4 3 Max Kills in Single Turn 1 | 1 1 1 1 Gunslinging . | . . . . Exploded . | . . . . Melee . | . . . . Uniques/NPCs Destroyed . | . . . . Combat | -11 -10 -9 -9 -------- Run | Yrd Mat Mat Sto Hostile Shots Fired 117 | 6 3 14 94 Missed 35 | 2 1 8 24 Damage Taken 913 | 40 22 81 770 Core 402 | . . 12 390 Absorbed by Shields . | . . . . Core Remaining (%) 100 | 100 100 . . Volleys Fired 55 | 9 11 11 24 Largest 2 | 2 2 2 2 Hottest 136 | 80 108 136 136 Shots Fired 105 | 17 22 22 44 Gun 37 | 17 16 4 . Cannon 68 | . 6 18 44 Launcher . | . . . . Special . | . . . . Kinetic 5 | 5 . . . Thermal 76 | 3 11 18 44 Explosive . | . . . . Electromagnetic 24 | 9 11 4 . Robot Hit Streak 12 | 3 12 5 8 Robot Miss Streak 4 | 1 4 3 4 Penetration Max . | . . . . Secondary Targets . | . . . . Shots Hit Robots 59 | 10 12 13 24 Core Hits 31 | 3 10 8 10 Critical Kills . | . . . . Critical Parts Destroyed . | . . . . Critical Strikes . | . . . . Melee Attacks . | . . . . Impact . | . . . . Slashing . | . . . . Piercing . | . . . . Sneak Attacks . | . . . . Combat Hostiles . | . . . . Follow-up Attacks . | . . . . Damage Inflicted 1211 | 139 234 286 552 Guns 319 | 139 168 12 . Cannons 822 | . 41 248 533 Explosions 51 | . 25 26 . Melee . | . . . . Ramming 19 | . . . 19 Kinetic 67 | 67 . . . Thermal 908 | 23 78 274 533 Explosive . | . . . . Electromagnetic 217 | 49 156 12 . Impact . | . . . . Slashing . | . . . . Piercing . | . . . . Highest Corruption 3 | 1 3 . 1 Average Corruption 2 | 1 2 . 1 Corruption Purged . | . . . . Corruption Blocked . | . . . . Effects 5 | 1 4 . . Message Errors 2 | 1 1 . . Matter Fused 1 | . 1 . . Data Loss (minor) 2 | . 2 . . Overload Shots . | . . . . Overflow Damage 1 | . . . 1 Projectiles 1 | . . . 1 Explosions . | . . . . Melee . | . . . . Knockbacks . | . . . . Impact . | . . . . Kinetic . | . . . . Secondary . | . . . . Self-Inflicted Damage 8 | . . . 8 Shots . | . . . . Rammed 5 | . . . 5 Targets Rammed 5 | . . . 5 Kicked . | . . . . Crushed . | . . . . Highest Temperature 102 | 24 60 102 99 Average Temperature 32 | 16 24 45 29 Received Heat Transfer 270 | 24 12 48 186 Siege Activations . | . . . . Robots Corrupted . | . . . . Combat Hostiles . | . . . . Parts Fried . | . . . . Impact Corruptions . | . . . . Robots Melted . | . . . . Combat Hostiles . | . . . . Parts Melted 1 | . . . 1 Heat Transferred 1655 | 50 149 494 962 Parts Sabotaged . | . . . . Parts Stolen . | . . . . Parts Stripped . | . . . . Power Chain Reactions 2 | . 1 1 . Alert | -11 -10 -9 -9 ------- Run | Yrd Mat Mat Sto Peak Influence 265 | 30 155 265 243 Initial 111 | . 19 65 111 Average 118 | 10 91 123 189 Maximum Alert Level 1 | . . 1 1 Low Security (%) 78 | 100 100 86 38 Level 1 21 | . . 13 61 Level 2 . | . . . . Level 3 . | . . . . Level 4 . | . . . . Level 5 . | . . . . High Security . | . . . . Max Security . | . . . . Squads Dispatched 1 | . . . 1 Investigation . | . . . . Extermination . | . . . . Reinforcement 1 | . . . 1 Assault . | . . . . Garrison . | . . . . Intercept . | . . . . Searches Triggered . | . . . . Construction Impeded . | . . . . Haulers Reinforced . | . . . . Active Scanning Responses . | . . . . Cargo Convoy Interrupts . | . . . . Stealth | -11 -10 -9 -9 --------- Run | Yrd Mat Mat Sto Distress Signals 4 | . 1 1 2 Communications Jammed . | . . . . Distress Signals . | . . . . Times Spotted 29 | 1 5 9 14 Peak Tracking Total 7 | 1 3 5 7 Tactical Retreats 1 | . . 1 . Traps | -11 -10 -9 -9 ------- Run | Yrd Mat Mat Sto Traps Triggered 2 | . 2 . . Indirectly . | . . . . Trap Hack Attempts . | . . . . Triggered . | . . . . Disarmed . | . . . . Reprogrammed . | . . . . Reused . | . . . . Traps Extracted . | . . . . Installed . | . . . . Triggered . | . . . . Machines | -11 -10 -9 -9 ---------- Run | Yrd Mat Mat Sto Machines Disabled 2 | . . . 2 Max in Single Turn 1 | . . . 1 Machines Repaired . | . . . . Machines Dismantled . | . . . . Machines Sabotaged . | . . . . Overloaded Fab Kills . | . . . . Hacking | -11 -10 -9 -9 --------- Run | Yrd Mat Mat Sto Machines Accessed 5 | . 2 2 1 Terminals 3 | . 1 1 1 Fabricators . | . . . . Repair Stations . | . . . . Recycling Units 2 | . 1 1 . Scanalyzers . | . . . . Garrison Access . | . . . . Total Hacks 12 | . 4 5 3 Successful 5 | . 3 1 1 Failed 7 | . 1 4 2 Catastrophic . | . . . . Database Lockouts . | . . . . Manual . | . . . . Terminals 9 | . 2 4 3 Fabricators . | . . . . Repair Stations . | . . . . Recycling Units 3 | . 2 1 . Scanalyzers . | . . . . Garrison Access . | . . . . Terminal Hacks 3 | . 1 1 1 Alert Level 2 | . 1 1 . Zone Layout 1 | . . . 1 Fabricator Hacks . | . . . . Repair Station Hacks . | . . . . Recycling Unit Hacks 2 | . 2 . . Report Inventory 1 | . 1 . . Retrieve Components 1 | . 1 . . Scanalyzer . | . . . . Garrison Access Hacks . | . . . . Unauthorized Hacks . | . . . . Terminals . | . . . . Fabricators . | . . . . Repair Stations . | . . . . Recycling Units . | . . . . Scanalyzers . | . . . . Garrison Access . | . . . . Data Cores Recovered 2 | . 1 1 . Used . | . . . . Hacking Detections 3 | . 1 2 . Full Trace Events . | . . . . Feedback Events . | . . . . Feedback Blocked . | . . . . Robot Schematics Acquired . | . . . . Robots Built . | . . . . Authchips . | . . . . Time . | . . . . Total Robot Build Rating . | . . . . Part Schematics Acquired . | . . . . Parts Built . | . . . . Authchips . | . . . . Time . | . . . . Total Part Build Rating . | . . . . Parts Repaired . | . . . . Time . | . . . . Parts Recycled . | . . . . Recycled Matter . | . . . . Retrieved Matter . | . . . . Retrieved Components 3 | . 3 . . Parts Scanalyzed . | . . . . Part Schematics Acquired . | . . . . Parts Damaged . | . . . . Bothacking | -11 -10 -9 -9 ------------ Run | Yrd Mat Mat Sto Used RIF Installer . | . . . . Robots Hacked . | . . . . Non-combat . | . . . . Combat . | . . . . Robot Hacks Applied . | . . . . Relay Couplers Released . | . . . . Fabnet Peak Effective % . | . . . . Robots Rewired . | . . . . Allies Hacked . | . . . . Hacks Repelled . | . . . . Allies | -11 -10 -9 -9 -------- Run | Yrd Mat Mat Sto Total Allies . | . . . . Largest Group . | . . . . Highest-Rated Group . | . . . . Highest-Rated Ally . | . . . . Total Orders . | . . . . Ally Attacks . | . . . . Total Damage . | . . . . Kills . | . . . . Allies Corrupted . | . . . . Allies Melted . | . . . . Intel | -11 -10 -9 -9 ------- Run | Yrd Mat Mat Sto Robot Analysis Total . | . . . . Derelict Logs Recovered . | . . . . Drone Launches . | . . . . Drone Recoveries . | . . . . Exploration | -11 -10 -9 -9 ------------- Run | Yrd Mat Mat Sto Turns Passed 902 | 121 259 259 263 Spaces Moved 678 | 99 253 181 145 Core 117 | 21 5 . 91 Treads . | . . . . Legs . | . . . . Wheels 146 | 78 68 . . Hover 414 | . 180 181 53 Flight 1 | . . . 1 Fastest Speed 50 | 50 56 116 50 Average Speed 91 | 73 74 116 103 Slowest Speed 296 | 80 296 116 250 Overloaded Moves . | . . . . Propulsion Burnouts . | . . . . Robots Hopped . | . . . . Cave-ins Triggered . | . . . . Exploration Rate (%) 21 | 7 36 18 26 Regions Visited 3 Branch Regions 1 Pre-discovered Areas . | . . . . Known Exits Taken 2 | . 1 1 . Unknown Exits Taken 1 | 1 . . . Scrap Searched . | . . . . Spaces Dug . | . . . . Terrain Destroyed 8 | . 6 2 . Melee . | . . . . Projectile . | . . . . AOE 8 | . 6 2 . Terrain Rammed . | . . . . Walls Destroyed . | . . . . Machines Disabled . | . . . . Actions | -11 -10 -9 -9 --------- Run | Yrd Mat Mat Sto Total 855 | 130 305 206 214 Wait 45 | . 2 4 39 Move 675 | 98 252 180 145 Hop . | . . . . Pick Up 33 | 13 17 3 . Fast Attach . | . . . . Attach 17 | 7 7 2 1 Detach . | . . . . Swap 11 | 1 5 5 . Drop 14 | 2 11 1 . Fire 55 | 9 11 11 24 Melee . | . . . . Ram 5 | . . . 5 Kick . | . . . . Crush . | . . . . Escape Stasis . | . . . . Rewire . | . . . . Trap . | . . . . Miscellaneous . | . . . . Route ------- -11/Scrapyard -10/Materials (discovered 2 exits: *Mat / *Min) -9/Materials -9/Storage History --------- Turn | Location | Event 2 | -11/Scrapyard | Met Revision 17 66 | -11/Scrapyard | Discovered new exit (range 8) 122 | -11/Scrapyard | Entered Materials 175 | -10/Materials | Discovered new exit (range 8) 212 | -10/Materials | Identified exit to Mines 348 | -10/Materials | Discovered new exit (range 3) 355 | -10/Materials | Identified exit to Materials 381 | -10/Materials | Entered another Materials area 381 | -9/Materials | Evolved 2 slots: Power x1, Utility x1 587 | -9/Materials | Discovered new exit (range 11) 611 | -9/Materials | Build established: Scavenger-Mutant 639 | -9/Materials | Identified exit to Storage 640 | -9/Materials | Entered Storage 773 | -9/Storage | Lost 4 parts (2p2n) 872 | -9/Storage | Core integrity fell below 50% 898 | -9/Storage | Core integrity fell below 20% 900 | -9/Storage | Lost 4 parts (1n2u1w) 903 | -9/Storage | Destroyed by G-34 Mercenary with Small Laser Last Messages --------------- 00852_ R-06 Scavenger collects Heat Sink. 00854_ K-01 Serf collects debris. 00855_ Connecting with Repair Station... 00858_ K-01 Serf collects debris. 00865_ K-01 Serf cleans the Repair Station. 00866_ Imp. Terrain Scanner destroyed. 00868_ Adv. Beam Cannon severed. 00868_ K-01 Serf cleans the Repair Station. 00869_ Imp. Heat Sink destroyed. 00869_ R-06 Scavenger collects Adv. Beam Cannon. 00882_ Slammed into G-34 Mercenary. 00884_ Destabilizing: System corrupted (+1). 00885_ Slammed into G-34 Mercenary. 00885_ Destabilizing: Core damaged (-16). 00890_ Terminal unresponsive. 00892_ Connecting with Terminal... >>Layout(Zone) Retrieving Zone 5X layout... Downloaded map data. 00902_ Signal Interpreter severed. Map ----- +----------------------------------------------------+ | # ##""" """ """ ????????????????? | | #######"R "" """ #???????????????? | | #??#??#""" +???????????????? | | ??????#### ^ #???????????????? | | ?######### #???????????????? | | ?# # #???????????????? | | ??# """ # #???????????????? | | #?# """ / ! ???????????????? | | #?# """ # ####### ???????????????? | | ??# # #?? ???? ?????????????????? | | ??# # +??????????????????????????? | | ??##+##/## # # ############???? | | ???# # #######??????????????? | | ???# + #??????##########????? | | ???# # #??????# #T###????? | | ???# # #??????# " ##????? | | ???#+##+##+## #######??????# # ##????? | | ??????? #%#????????????###### ##????? | | ???????"" #%####################+###???? | | ??????? "" #%% ???? | | ??????? """ + m ???? | | ???????" " # ???? | | ???????" " ###+#/#########+#########+???? | | ???????"""" # g #### ##??#### ???? | | ??????? # T ""#T ##??###T ???? | | ???????###### """@g ""##" "##??####"???? | | ????????????# """g T"## ##??## ???? | | ????????????#g""" ""## ##??## ???? | | ????????????# gl Y ""## ##??## ???? | | ????????????# #### ##??## ???? | | ????????????# ########??#####???? | | ????????????##"T"##############??#####???? | | ?????????????#"""#???????????????????????? | | ?????????????#####???????????????????????? | | ?????????????????????????????????????????? | | ?????????????????????????????????????????? | | ?????????????????????????????????????????? | | ?????????????????????????????????????????? | | ?????????????????????????????????????????? | | ?????????????????????????????????????????? | | ?????????????????????????????????????????? | | ?????????????????????????????????????????? | | ?????????????????????????????????????????? | | | | | | | | | | | | | | | +----------------------------------------------------+ Best States ------------- Heat Dissipation 42 Energy Generation 15 Energy Capacity 150 Matter Stores 400 Matter Capacity 400 Sight Range 16 Terrain Scan Range 16 Terrain Scan Density 10 Evasion (%) 53 Item Schematics ----------------- None Robot Schematics ------------------ None Fabricated ------------ Nothing Alien Tech Used ----------------- None Achievements -------------- Crack Shot Risk Taker Challenges ------------ None Game ------ Seed NeutrinoArmoredAnalyzer Manual? 0 Play Time 00:35:40 Cumulative 2.2 hours Start 2024.07.09 @ 23:31:54 End 2024.07.10 @ 00:10:46 Sessions 1 Manual Loads 0 Difficulty Rogue Special Mode None Game No. 3 Rogue 3 Adventurer 0 Explorer 0 Win Type - Total 0 Types 0/0/0/0/0/0/0/0/0 Lore% 0 Gallery% 3 Achievement% 4 Wizard Run 0 Options --------- Layout 1 ASCII 0 Keyboard 1 Movement Numpad Keybinds 0 Fullscreen 2 Font 20/SmallcapsGlow Map View 32x21 Zoom Use 74% Tactical HUD 1 Map Filters NONE Filters NONE Steam 1 RUN: d2e89535-c161-4db3-8657-19165c7aff64